[Event "15. Dobrovický rapid - Tereos TTD a.s. – open"]
[Site "Dobrovice, Czech Republic"]
[Date "2020.02.29"]
[Round "9.10"]
[White "Lasek Frantisek"]
[Black "Groh Jiri"]
[Result "1-0"]
[TimeControl "15m + 3s / tah"]
[WhiteElo "1932"]
[BlackElo "2031"]

1. f4 {[%clk 00:15:03]} {[%emt 00:00:02]} c5 {[%clk 00:15:05]} {[%emt
00:00:02]} 2. Nf3 {[%clk 00:15:04]} {[%emt 00:00:02]} Nc6 {[%clk 00:15:06]} 3.
b3 {[%clk 00:15:05]} {[%emt 00:00:04]} d5 {[%clk 00:15:05]} {[%emt 00:00:05]} 4.
Bb2 {[%clk 00:15:04]} {[%emt 00:00:04]} Nf6 {[%clk 00:15:05]} {[%emt 00:00:02]}
5. e3 {[%clk 00:15:05]} {[%emt 00:00:02]} e6 {[%clk 00:15:02]} {[%emt
00:00:06]} 6. d4 {[%clk 00:14:58]} {[%emt 00:00:11]} Be7 {[%clk 00:14:54]}
{[%emt 00:00:11]} 7. Bd3 {[%clk 00:14:56]} {[%emt 00:00:05]} O-O {[%clk
00:14:50]} {[%emt 00:00:07]} 8. O-O {[%clk 00:14:54]} {[%emt 00:00:04]} Qd6
{[%clk 00:14:19]} {[%emt 00:00:33]} 9. Nbd2 {[%clk 00:14:48]} {[%emt 00:00:09]}
cxd4 {[%clk 00:14:06]} {[%emt 00:00:17]} 10. Nxd4 {[%clk 00:14:46]} {[%emt
00:00:06]} Bd7 {[%clk 00:13:40]} {[%emt 00:00:29]} 11. N2f3 {[%clk 00:14:39]}
{[%emt 00:00:09]} Nb4 {[%clk 00:13:17]} {[%emt 00:00:25]} 12. Ba3 {[%clk
00:14:06]} {[%emt 00:00:37]} Qc7 {[%clk 00:11:44]} {[%emt 00:01:36]} 13. Qd2
{[%clk 00:12:49]} {[%emt 00:01:20]} Nc6 {[%clk 00:11:10]} {[%emt 00:00:37]} 14.
Bxe7 {[%clk 00:11:47]} {[%emt 00:01:05]} Nxe7 {[%clk 00:11:12]} {[%emt
00:00:01]} 15. Ne5 {[%clk 00:11:31]} {[%emt 00:00:19]} Nc6 {[%clk 00:10:41]}
{[%emt 00:00:34]} 16. Nxd7 {[%clk 00:11:02]} {[%emt 00:00:32]} Qxd7 {[%clk
00:10:36]} {[%emt 00:00:08]} 17. Rac1 {[%clk 00:10:30]} {[%emt 00:00:35]} Rac8
{[%clk 00:10:00]} {[%emt 00:00:39]} 18. Rfd1 {[%clk 00:10:08]} {[%emt
00:00:25]} h6 {[%clk 00:09:02]} {[%emt 00:01:02]} 19. Nxc6 {[%clk 00:09:45]}
{[%emt 00:00:25]} Qxc6 {[%clk 00:08:55]} {[%emt 00:00:10]} 20. c4 {[%clk
00:09:40]} {[%emt 00:00:08]} Qb6 {[%clk 00:08:44]} {[%emt 00:00:14]} 21. h3
{[%clk 00:09:06]} {[%emt 00:00:37]} Rfd8 {[%clk 00:08:28]} {[%emt 00:00:19]} 22.
Kh2 {[%clk 00:08:24]} {[%emt 00:00:45]} dxc4 {[%clk 00:08:01]} {[%emt
00:00:31]} 23. Rxc4 {[%clk 00:07:50]} {[%emt 00:00:37]} Rxc4 {[%clk 00:07:29]}
{[%emt 00:00:35]} 24. bxc4 {[%clk 00:07:50]} {[%emt 00:00:03]} Ne4 {[%clk
00:06:23]} {[%emt 00:01:09]} 25. Qe1 {[%clk 00:07:06]} {[%emt 00:00:47]} Nc5
{[%clk 00:06:03]} {[%emt 00:00:23]} 26. Bc2 {[%clk 00:06:38]} {[%emt 00:00:30]}
g6 {[%clk 00:04:38]} {[%emt 00:01:28]} 27. Rd4 {[%clk 00:05:52]} {[%emt
00:00:50]} Rxd4 {[%clk 00:03:53]} {[%emt 00:00:48]} 28. exd4 {[%clk 00:05:52]}
{[%emt 00:00:02]} Nd7 {[%clk 00:03:55]} {[%emt 00:00:01]} 29. Qe4 {[%clk
00:05:29]} {[%emt 00:00:25]} Qc7 {[%clk 00:03:56]} {[%emt 00:00:02]} 30. Bb3
{[%clk 00:05:16]} {[%emt 00:00:16]} b6 {[%clk 00:03:55]} {[%emt 00:00:04]} 31.
d5 {[%clk 00:04:56]} {[%emt 00:00:23]} exd5 {[%clk 00:03:09]} {[%emt 00:00:49]}
32. cxd5 {[%clk 00:04:49]} {[%emt 00:00:10]} Nc5 {[%clk 00:03:01]} {[%emt
00:00:11]} 33. d6 {[%clk 00:04:21]} {[%emt 00:00:31]} Qd8 {[%clk 00:00:57]}
{[%emt 00:02:07]} 34. Qxg6+ {[%clk 00:04:19]} {[%emt 00:00:06]} Kh8 {[%clk
00:00:54]} {[%emt 00:00:06]} 35. Qxh6+ {[%clk 00:04:16]} {[%emt 00:00:06]} Kg8
{[%clk 00:00:57]} 36. Qg6+ {[%clk 00:04:09]} {[%emt 00:00:10]} Kh8 {[%clk
00:00:54]} {[%emt 00:00:06]} 37. Bxf7 {[%clk 00:04:10]} {[%emt 00:00:02]} Qf8
{[%clk 00:00:45]} {[%emt 00:00:11]} 38. Qf6+ {[%clk 00:03:48]} {[%emt
00:00:25]} Kh7 {[%clk 00:00:48]} 39. Bg6+ {[%clk 00:03:49]} {[%emt 00:00:02]}
Kg8 {[%clk 00:00:50]} 40. Bh7+ {[%clk 00:03:51]} 1-0

[Event "15. Dobrovický rapid - Tereos TTD a.s. – open"]
[Site "Dobrovice, Czech Republic"]
[Date "2020.02.29"]
[Round "9.11"]
[White "Vavrinec Tomas"]
[Black "Vranova Zdenka"]
[Result "0-1"]
[TimeControl "15m + 3s / tah"]
[WhiteElo "2025"]
[BlackElo "1970"]

1. c4 {[%clk 00:15:03]} {[%emt 00:00:02]} g6 {[%clk 00:15:02]} {[%emt
00:00:05]} 2. Nc3 {[%clk 00:15:04]} {[%emt 00:00:02]} Bg7 {[%clk 00:15:03]}
{[%emt 00:00:01]} 3. g3 {[%clk 00:15:06]} {[%emt 00:00:02]} d6 {[%clk
00:15:01]} {[%emt 00:00:05]} 4. Bg2 {[%clk 00:15:07]} {[%emt 00:00:02]} Nf6
{[%clk 00:15:02]} {[%emt 00:00:02]} 5. Nf3 {[%clk 00:15:08]} {[%emt 00:00:03]}
O-O {[%clk 00:15:02]} {[%emt 00:00:03]} 6. O-O {[%clk 00:15:09]} {[%emt
00:00:02]} c6 {[%clk 00:15:02]} {[%emt 00:00:02]} 7. d3 {[%clk 00:14:47]}
{[%emt 00:00:25]} Nbd7 {[%clk 00:15:01]} {[%emt 00:00:04]} 8. Rb1 {[%clk
00:14:48]} {[%emt 00:00:02]} Ng4 {[%clk 00:14:46]} {[%emt 00:00:18]} 9. Bd2
{[%clk 00:14:31]} {[%emt 00:00:19]} Nge5 {[%clk 00:14:43]} {[%emt 00:00:07]} 10.
Nxe5 {[%clk 00:14:22]} {[%emt 00:00:12]} Bxe5 {[%clk 00:14:41]} {[%emt
00:00:06]} 11. b4 {[%clk 00:14:19]} {[%emt 00:00:06]} Rb8 {[%clk 00:14:41]}
{[%emt 00:00:03]} 12. a4 {[%clk 00:13:38]} {[%emt 00:00:44]} c5 {[%clk
00:14:40]} {[%emt 00:00:05]} 13. Nb5 {[%clk 00:11:09]} {[%emt 00:02:32]} a6
{[%clk 00:14:36]} {[%emt 00:00:06]} 14. Na7 {[%clk 00:11:10]} {[%emt 00:00:03]}
cxb4 {[%clk 00:14:18]} {[%emt 00:00:22]} 15. Nxc8 {[%clk 00:10:55]} {[%emt
00:00:17]} Qxc8 {[%clk 00:14:18]} {[%emt 00:00:02]} 16. Rxb4 {[%clk 00:10:38]}
{[%emt 00:00:20]} b6 {[%clk 00:14:09]} {[%emt 00:00:12]} 17. Bh3 {[%clk
00:09:38]} {[%emt 00:01:03]} e6 {[%clk 00:14:08]} {[%emt 00:00:03]} 18. Be3
{[%clk 00:08:24]} {[%emt 00:01:18]} Qc7 {[%clk 00:13:57]} {[%emt 00:00:13]} 19.
Qb1 {[%clk 00:07:49]} {[%emt 00:00:39]} Bc3 {[%clk 00:13:53]} {[%emt 00:00:06]}
20. Rb3 {[%clk 00:07:42]} {[%emt 00:00:10]} Bg7 {[%clk 00:13:44]} {[%emt
00:00:11]} 21. Rc1 {[%clk 00:06:45]} {[%emt 00:01:02]} Nc5 {[%clk 00:11:44]}
{[%emt 00:02:03]} 22. Ra3 {[%clk 00:06:31]} {[%emt 00:00:17]} Qd7 {[%clk
00:11:33]} {[%emt 00:00:14]} 23. Qa2 {[%clk 00:06:22]} {[%emt 00:00:11]} a5
{[%clk 00:11:01]} {[%emt 00:00:36]} 24. d4 {[%clk 00:05:19]} {[%emt 00:01:06]}
Na6 {[%clk 00:10:58]} {[%emt 00:00:05]} 25. d5 {[%clk 00:04:59]} {[%emt
00:00:23]} Qe7 {[%clk 00:10:44]} {[%emt 00:00:18]} 26. dxe6 {[%clk 00:04:17]}
{[%emt 00:00:45]} fxe6 {[%clk 00:10:45]} {[%emt 00:00:02]} 27. c5 {[%clk
00:03:52]} {[%emt 00:00:28]} bxc5 {[%clk 00:09:51]} {[%emt 00:00:57]} 28. Bxe6+
{[%clk 00:03:45]} {[%emt 00:00:10]} Kh8 {[%clk 00:09:53]} {[%emt 00:00:02]} 29.
Qc4 {[%clk 00:02:33]} {[%emt 00:01:14]} Bb2 {[%clk 00:08:43]} {[%emt 00:01:13]}
30. Bh6 {[%clk 00:01:13]} {[%emt 00:01:23]} Rf6 {[%clk 00:08:30]} {[%emt
00:00:16]} 31. Re3 {[%clk 00:01:15]} {[%emt 00:00:02]} Bxc1 {[%clk 00:08:26]}
{[%emt 00:00:07]} 32. Qxc1 {[%clk 00:01:16]} {[%emt 00:00:02]} Nc7 {[%clk
00:08:07]} {[%emt 00:00:22]} 33. Bc4 {[%clk 00:00:49]} {[%emt 00:00:30]} Qd8
{[%clk 00:07:05]} {[%emt 00:01:05]} 34. Qc3 {[%clk 00:00:50]} {[%emt 00:00:02]}
d5 {[%clk 00:06:52]} {[%emt 00:00:16]} 35. Qe5 {[%clk 00:00:14]} {[%emt
00:00:39]} dxc4 {[%clk 00:06:27]} {[%emt 00:00:28]} 36. Bg5 {[%clk 00:00:16]}
{[%emt 00:00:01]} Qd1+ {[%clk 00:06:25]} {[%emt 00:00:04]} 37. Kg2 {[%clk
00:00:18]} {[%emt 00:00:01]} Qd5+ {[%clk 00:06:25]} {[%emt 00:00:03]} 38. Qxd5
{[%clk 00:00:08]} {[%emt 00:00:14]} Nxd5 {[%clk 00:06:27]} {[%emt 00:00:01]} 39.
Re5 {[%clk 00:00:04]} {[%emt 00:00:07]} Rf5 {[%clk 00:06:28]} {[%emt 00:00:03]}
40. Bh6 {[%emt 00:00:55]} 0-1

[Event "15. Dobrovický rapid - Tereos TTD a.s. – open"]
[Site "Dobrovice, Czech Republic"]
[Date "2020.02.29"]
[Round "9.12"]
[White "Zahorbensky Jaroslav"]
[Black "Danek Pavel"]
[Result "1-0"]
[TimeControl "15m + 3s / tah"]
[WhiteElo "2105"]
[BlackElo "1844"]

1. e4 {[%clk 00:15:04]} {[%emt 00:00:01]} e6 {[%clk 00:15:05]} {[%emt
00:00:02]} 2. d4 {[%clk 00:15:05]} {[%emt 00:00:01]} d5 {[%clk 00:15:07]} 3. e5
{[%clk 00:15:08]} c5 {[%clk 00:15:09]} {[%emt 00:00:02]} 4. c3 {[%clk
00:15:10]} {[%emt 00:00:01]} Qb6 {[%clk 00:15:11]} 5. Nf3 {[%clk 00:15:10]}
{[%emt 00:00:03]} Bd7 {[%clk 00:15:13]} 6. Bd3 {[%clk 00:14:57]} {[%emt
00:00:16]} Bb5 {[%clk 00:15:07]} {[%emt 00:00:09]} 7. O-O {[%clk 00:14:56]}
{[%emt 00:00:04]} Bxd3 {[%clk 00:15:04]} {[%emt 00:00:05]} 8. Qxd3 {[%clk
00:14:58]} {[%emt 00:00:01]} cxd4 {[%clk 00:14:56]} {[%emt 00:00:11]} 9. cxd4
{[%clk 00:14:48]} {[%emt 00:00:13]} Ne7 {[%clk 00:14:46]} {[%emt 00:00:14]} 10.
Nc3 {[%clk 00:14:40]} {[%emt 00:00:10]} Nec6 {[%clk 00:14:33]} {[%emt
00:00:16]} 11. Be3 {[%clk 00:14:04]} {[%emt 00:00:38]} Nd7 {[%clk 00:14:13]}
{[%emt 00:00:23]} 12. a3 {[%clk 00:13:16]} {[%emt 00:00:51]} Be7 {[%clk
00:14:10]} {[%emt 00:00:06]} 13. b4 {[%clk 00:13:14]} {[%emt 00:00:05]} a6
{[%clk 00:13:54]} {[%emt 00:00:19]} 14. Nd2 {[%clk 00:12:22]} {[%emt 00:00:55]}
Rc8 {[%clk 00:12:57]} {[%emt 00:01:00]} 15. f4 {[%clk 00:12:16]} {[%emt
00:00:09]} g6 {[%clk 00:12:43]} {[%emt 00:00:17]} 16. Kh1 {[%clk 00:11:23]}
{[%emt 00:00:56]} O-O {[%clk 00:12:10]} {[%emt 00:00:35]} 17. Rf3 {[%clk
00:10:26]} {[%emt 00:01:01]} Kg7 {[%clk 00:11:54]} {[%emt 00:00:19]} 18. Rh3
{[%clk 00:10:13]} {[%emt 00:00:16]} h5 {[%clk 00:11:35]} {[%emt 00:00:23]} 19.
f5 {[%clk 00:09:28]} {[%emt 00:00:48]} exf5 {[%clk 00:11:09]} {[%emt 00:00:28]}
20. Nxd5 {[%clk 00:09:26]} {[%emt 00:00:04]} Qd8 {[%clk 00:11:11]} {[%emt
00:00:01]} 21. Nf4 {[%clk 00:08:35]} {[%emt 00:00:54]} Bg5 {[%clk 00:09:20]}
{[%emt 00:01:54]} 22. Nxh5+ {[%clk 00:08:06]} {[%emt 00:00:32]} gxh5 {[%clk
00:09:00]} {[%emt 00:00:23]} 23. Bxg5 {[%clk 00:08:05]} {[%emt 00:00:03]} f6
{[%clk 00:07:10]} {[%emt 00:01:54]} 24. exf6+ {[%clk 00:06:58]} {[%emt
00:01:10]} Nxf6 {[%clk 00:06:39]} {[%emt 00:00:34]} 25. d5 {[%clk 00:06:36]}
{[%emt 00:00:25]} Ne5 {[%clk 00:05:43]} {[%emt 00:00:59]} 26. Qxf5 {[%clk
00:05:35]} {[%emt 00:01:04]} Neg4 {[%clk 00:04:50]} {[%emt 00:00:56]} 27. Rf3
{[%clk 00:04:32]} {[%emt 00:01:05]} Qc7 {[%clk 00:04:20]} {[%emt 00:00:34]} 28.
Bf4 {[%clk 00:03:41]} {[%emt 00:00:54]} Qc2 {[%clk 00:03:58]} {[%emt 00:00:24]}
29. Qxc2 {[%clk 00:03:38]} {[%emt 00:00:07]} Rxc2 {[%clk 00:04:00]} {[%emt
00:00:02]} 30. h3 {[%clk 00:03:22]} {[%emt 00:00:19]} Nxd5 {[%clk 00:03:49]}
{[%emt 00:00:13]} 31. hxg4 {[%clk 00:03:01]} {[%emt 00:00:24]} hxg4 {[%clk
00:03:39]} {[%emt 00:00:14]} 32. Bh6+ {[%clk 00:03:01]} {[%emt 00:00:03]} Kxh6
{[%clk 00:03:27]} {[%emt 00:00:14]} 33. Rxf8 {[%clk 00:03:02]} {[%emt
00:00:01]} Rxd2 {[%clk 00:03:08]} {[%emt 00:00:22]} 34. Kh2 {[%clk 00:02:35]}
{[%emt 00:00:31]} Ne3 {[%clk 00:02:55]} {[%emt 00:00:15]} 35. Rg1 {[%clk
00:02:23]} {[%emt 00:00:15]} Kg5 {[%clk 00:02:52]} {[%emt 00:00:06]} 36. Re8
{[%clk 00:01:09]} {[%emt 00:01:15]} Nf5 {[%clk 00:02:31]} {[%emt 00:00:26]} 37.
Rf1 {[%clk 00:01:01]} {[%emt 00:00:10]} Nh4 {[%clk 00:01:59]} {[%emt 00:00:36]}
38. Rg8+ {[%clk 00:01:00]} {[%emt 00:00:03]} Kh5 {[%clk 00:01:39]} {[%emt
00:00:24]} 39. Rf7 {[%clk 00:00:44]} {[%emt 00:00:19]} Nf3+ {[%clk 00:00:45]}
{[%emt 00:00:57]} 40. Kg3 {[%clk 00:00:44]} {[%emt 00:00:03]} Rd6 {[%clk
00:00:33]} {[%emt 00:00:15]} 41. Rh7+ {[%clk 00:00:36]} {[%emt 00:00:11]} Rh6
{[%clk 00:00:35]} 42. Rxh6+ {[%clk 00:00:37]} {[%emt 00:00:02]} Kxh6 {[%clk
00:00:37]} {[%emt 00:00:01]} 43. gxf3 {[%emt 00:00:22]} 1-0

[Event "15. Dobrovický rapid - Tereos TTD a.s. – open"]
[Site "Dobrovice, Czech Republic"]
[Date "2020.02.29"]
[Round "9.13"]
[White "Joukl Zdenek"]
[Black "Buchar Petr"]
[Result "1/2-1/2"]
[TimeControl "15m + 3s / tah"]
[WhiteElo "2022"]
[BlackElo "1904"]

1. d4 {[%clk 00:15:03]} {[%emt 00:00:02]} f5 {[%clk 00:15:04]} {[%emt
00:00:03]} 2. Nf3 {[%clk 00:15:03]} {[%emt 00:00:03]} Nf6 {[%clk 00:15:06]}
{[%emt 00:00:01]} 3. Bf4 {[%clk 00:15:00]} {[%emt 00:00:06]} g6 {[%clk
00:15:04]} {[%emt 00:00:05]} 4. e3 {[%clk 00:14:51]} {[%emt 00:00:12]} Bg7
{[%clk 00:15:04]} {[%emt 00:00:02]} 5. Nbd2 {[%clk 00:14:42]} {[%emt 00:00:12]}
O-O {[%clk 00:14:59]} {[%emt 00:00:08]} 6. c4 {[%clk 00:14:22]} {[%emt
00:00:23]} d6 {[%clk 00:14:58]} {[%emt 00:00:04]} 7. Be2 {[%clk 00:13:47]}
{[%emt 00:00:38]} h6 {[%clk 00:14:58]} {[%emt 00:00:03]} 8. h3 {[%clk
00:13:44]} {[%emt 00:00:06]} c6 {[%clk 00:14:52]} {[%emt 00:00:09]} 9. O-O
{[%clk 00:13:23]} {[%emt 00:00:24]} Qe8 {[%clk 00:14:51]} {[%emt 00:00:04]} 10.
Qb3 {[%clk 00:12:57]} {[%emt 00:00:29]} Kh7 {[%clk 00:14:40]} {[%emt 00:00:13]}
11. a4 {[%clk 00:12:20]} {[%emt 00:00:40]} Nh5 {[%clk 00:14:38]} {[%emt
00:00:06]} 12. Bh2 {[%clk 00:12:01]} {[%emt 00:00:22]} e5 {[%clk 00:13:59]}
{[%emt 00:00:41]} 13. dxe5 {[%clk 00:11:05]} {[%emt 00:01:00]} dxe5 {[%clk
00:13:57]} {[%emt 00:00:05]} 14. c5 {[%clk 00:10:10]} {[%emt 00:00:58]} f4
{[%clk 00:12:16]} {[%emt 00:01:44]} 15. Nc4 {[%clk 00:09:22]} {[%emt 00:00:51]}
Qe6 {[%clk 00:10:07]} {[%emt 00:02:12]} 16. Qc2 {[%clk 00:08:58]} {[%emt
00:00:27]} e4 {[%clk 00:09:55]} {[%emt 00:00:14]} 17. Ne1 {[%clk 00:06:16]}
{[%emt 00:02:45]} f3 {[%clk 00:09:31]} {[%emt 00:00:27]} 18. gxf3 {[%clk
00:05:33]} {[%emt 00:00:46]} exf3 {[%clk 00:07:19]} {[%emt 00:02:16]} 19. Bxf3
{[%clk 00:04:46]} {[%emt 00:00:49]} Qxh3 {[%clk 00:06:30]} {[%emt 00:00:52]} 20.
Bg2 {[%clk 00:04:42]} {[%emt 00:00:07]} Qh4 {[%clk 00:05:32]} {[%emt 00:01:00]}
21. Nf3 {[%clk 00:03:45]} {[%emt 00:01:01]} Rxf3 {[%clk 00:04:24]} {[%emt
00:01:11]} 22. Bxf3 {[%clk 00:03:40]} {[%emt 00:00:08]} Bh3 {[%clk 00:04:26]}
23. Rfd1 {[%clk 00:01:09]} {[%emt 00:02:34]} Nd7 {[%clk 00:03:14]} {[%emt
00:01:15]} 24. Bxh5 {[%clk 00:00:17]} {[%emt 00:00:55]} Qxh5 {[%clk 00:02:52]}
{[%emt 00:00:24]} 25. f4 {[%clk 00:00:12]} {[%emt 00:00:07]} Qg4+ {[%clk
00:01:56]} {[%emt 00:00:59]} 26. Kh1 Qf3+ 27. Kg1 {[%clk 00:00:17]} Qg4+ {[%clk
00:00:44]} {[%emt 00:01:18]} 28. Kh1 {[%emt 00:00:01]} Qf3+ 29. Kg1 {[%clk
00:00:20]} {[%emt 00:00:01]} Nxc5 {[%emt 00:00:38]} 30. Qf2 Qxf2+ 31. Kxf2 b5
{[%emt 00:00:01]} 32. axb5 {[%emt 00:00:09]} cxb5 {[%emt 00:00:02]} 33. Ne5
{[%emt 00:00:01]} Nd7 {[%emt 00:00:49]} 1/2-1/2

[Event "15. Dobrovický rapid - Tereos TTD a.s. – open"]
[Site "Dobrovice, Czech Republic"]
[Date "2020.02.29"]
[Round "9.14"]
[White "Janous Petr"]
[Black "Spirek Adam"]
[Result "0-1"]
[TimeControl "15m + 3s / tah"]
[WhiteElo "1931"]
[BlackElo "2015"]

1. e4 {[%clk 00:15:05]} d5 {[%clk 00:15:03]} {[%emt 00:00:03]} 2. exd5 {[%clk
00:15:07]} {[%emt 00:00:01]} Nf6 {[%clk 00:15:04]} {[%emt 00:00:01]} 3. d4
{[%clk 00:14:58]} {[%emt 00:00:12]} Bg4 {[%clk 00:15:04]} {[%emt 00:00:03]} 4.
Be2 {[%clk 00:14:39]} {[%emt 00:00:22]} Bxe2 {[%clk 00:15:04]} {[%emt
00:00:03]} 5. Nxe2 {[%clk 00:14:40]} {[%emt 00:00:02]} Qxd5 {[%clk 00:15:04]}
{[%emt 00:00:02]} 6. O-O {[%clk 00:14:39]} {[%emt 00:00:03]} Nc6 {[%clk
00:15:04]} {[%emt 00:00:03]} 7. Nbc3 {[%clk 00:14:34]} {[%emt 00:00:08]} Qh5
{[%clk 00:14:56]} {[%emt 00:00:12]} 8. Ng3 {[%clk 00:14:34]} {[%emt 00:00:04]}
Qg6 {[%clk 00:14:51]} {[%emt 00:00:08]} 9. Be3 {[%clk 00:13:45]} {[%emt
00:00:52]} O-O-O {[%clk 00:14:28]} {[%emt 00:00:24]} 10. Nce2 {[%clk 00:13:34]}
{[%emt 00:00:15]} h5 {[%clk 00:14:21]} {[%emt 00:00:10]} 11. Nf4 {[%clk
00:11:48]} {[%emt 00:01:49]} Qh7 {[%clk 00:14:22]} {[%emt 00:00:02]} 12. c3
{[%clk 00:10:45]} {[%emt 00:01:05]} h4 {[%clk 00:13:44]} {[%emt 00:00:41]} 13.
Nge2 {[%clk 00:10:41]} {[%emt 00:00:07]} g5 {[%clk 00:09:05]} {[%emt 00:04:43]}
14. Nd3 {[%clk 00:10:08]} {[%emt 00:00:37]} h3 {[%clk 00:07:27]} {[%emt
00:01:41]} 15. gxh3 {[%clk 00:04:51]} {[%emt 00:05:20]} Qxh3 {[%clk 00:07:16]}
{[%emt 00:00:13]} 16. Re1 {[%clk 00:04:51]} {[%emt 00:00:03]} Qxh2+ {[%clk
00:07:14]} {[%emt 00:00:06]} 17. Kf1 {[%clk 00:04:54]} Qh3+ {[%clk 00:07:12]}
{[%emt 00:00:05]} 0-1